bitfinex-derivatives/quotes_SOLF0:USTF0_20250923
["timestamp","ask_amount","ask_price","bid_price","bid_amount"]
[1758616546989,3.2886698,219.98,219.92,63.615]
[1758616547187,111.72,220.0,219.93,7.46]
[1758616547395,3.28885509,219.99,219.96,4.0886]
[1758616547593,3.28885509,219.98,219.96,11.5486]
[1758616547794,118.92,220.0,219.96,11.5486]
[1758616547992,3.28885472,219.99,219.96,11.5486]
[1758616548195,3.28885472,219.98,219.96,11.5486]
[1758616548395,118.92,220.0,219.96,11.5486]
[1758616548697,3.28917153,219.99,219.98,7.46]
[1758616549296,1.89078325,220.07,219.98,71.0569]
[1758616549496,6.94175949,220.06,219.99,63.5947]
[1758616549696,3.28920312,220.05,220.0,1.89078325]
[1758616549994,3.28920312,220.04,220.0,1.89078325]
[1758616550192,3.28893674,220.03,220.0,1.89078325]
[1758616550497,32.42,220.07,220.01,7.46]
[1758616550696,3.27156132,220.06,220.0,9.35078325]
[1758616550999,3.27156132,220.05,220.02,11.5475]
[1758616551198,3.27156132,220.04,220.02,11.5475]
[1758616551397,39.62,220.07,220.02,11.5475]
[1758616551595,3.27199638,220.06,220.02,11.5475]
[1758616551797,3.27199638,220.05,220.02,11.5475]
[1758616551998,3.27199638,220.04,220.02,11.5475]
[1758616552198,3.27199638,220.03,220.02,11.5475]
[1758616553396,3.27199638,220.03,220.0,7.46]
[1758616553697,3.27199638,220.02,219.96,7.46]
[1758616554292,3.27199638,220.02,219.98,4.0884]
[1758616554489,3.27199638,220.02,219.99,7.46]
[1758616557396,3.27199638,220.02,219.98,4.0884]
[1758616557602,3.27199638,220.02,219.99,7.46]
[1758616558706,10.47199638,220.02,219.99,7.46]
[1758616558907,3.27199638,220.01,219.99,7.46]
[1758616559905,3.27199638,220.01,219.98,4.0884]
[1758616560200,3.27199638,220.01,219.99,7.46]
[1758616560405,3.27199638,220.0,219.99,7.46]
[1758616560999,1.89078325,220.04,219.98,4.0884]
[1758616561207,7.12,220.02,219.98,4.0884]
[1758616561399,3.27199638,220.01,219.99,7.12]
[1758616562201,3.27199638,220.01,220.0,11.208]
[1758616562401,3.27199638,220.01,220.0,4.088]
[1758616562601,3.27199638,220.04,220.0,4.088]
[1758616562802,3.27199638,220.03,220.0,4.088]
[1758616563000,3.27199638,220.02,220.01,7.12]
[1758616563197,5.09579959,220.09,220.03,7.12]
[1758616563401,6.92885168,220.08,220.03,7.12]
[1758616563601,9.01078325,220.06,219.98,7.12]
[1758616563801,6.92885168,220.05,219.98,7.12]
[1758616564004,6.92895708,220.04,219.98,7.12]
[1758616564204,3.27390747,220.03,219.97,7.12]
[1758616564406,3.27390747,220.02,219.96,5.97938325]
[1758616564699,3.27390747,220.01,219.97,7.12]
[1758616564903,7.12,220.04,219.97,7.12]
[1758616565208,6.90573595,220.03,219.97,7.12]
[1758616565503,7.12,220.01,219.94,1.89078325]
[1758616565704,3.25054864,220.0,219.94,1.89078325]
[1758616566105,3.25054864,220.0,219.93,7.12]
[1758616566908,3.25054864,220.0,219.96,7.12]
[1758616567107,3.25054864,220.0,219.95,4.089]
[1758616567316,3.25054864,219.99,219.96,7.12]
[1758616567504,7.12,220.02,219.96,7.12]
[1758616567702,3.25239349,220.01,219.96,7.12]
[1758616567907,3.25239349,220.0,219.97,4.0886]
[1758616568216,3.25284338,219.99,219.98,7.12]
[1758616568714,3.25277614,219.99,219.98,7.12]
[1758616569412,3.25277614,219.99,219.97,4.0886]
[1758616569413,3.25277614,219.99,219.94,5.97978325]
[1758616569614,7.12,219.99,219.94,5.97978325]
[1758616569913,7.12,219.99,219.95,7.12]
[1758616570411,3.2124905,219.98,219.95,7.12]
[1758616570612,7.12,219.99,219.95,7.12]
[1758616570814,1.89078325,220.02,219.96,7.12]
[1758616571110,6.8710518,220.01,219.96,7.12]
[1758616571307,10.33267195,220.0,219.96,7.12]
[1758616571508,3.21267195,219.99,219.96,7.12]
[1758616572514,3.21267195,219.99,219.97,4.0886]
[1758616572809,3.21308543,219.98,219.97,4.0886]
[1758616573514,9.01078325,220.05,219.99,4.0882]
[1758616573711,13.99148929,220.04,220.0,7.12]
[1758616573911,6.87148929,220.03,219.97,65.49108325]
[1758616574115,3.2128262,220.02,220.01,7.12]
[1758616574613,9.01078325,220.08,220.01,7.12]
[1758616574814,3.65813167,220.07,220.01,7.12]
[1758616575115,9.01078325,220.05,219.97,7.12]
[1758616575315,3.65813167,220.04,219.97,7.12]
[1758616575515,9.01078325,220.05,219.97,7.12]
[1758616575719,3.65796917,220.04,219.97,7.12]
[1758616575916,9.01078325,220.05,219.97,7.12]
[1758616576112,1.89078325,220.08,219.99,7.12]
[1758616576316,3.6577881,220.07,219.99,7.12]
[1758616576511,3.6577881,220.06,220.0,1.89078325]
[1758616576710,1.89078325,220.08,220.01,7.65]
[1758616576911,3.65745417,220.07,220.01,7.65]
[1758616577218,3.65745417,220.06,220.03,4.0874]
[1758616577408,7.59,220.07,220.03,4.0874]
[1758616577717,3.65713674,220.06,220.03,4.0874]
[1758616577918,7.59,220.07,220.03,4.0874]
[1758616578117,3.65713749,220.06,220.03,4.0874]
[1758616578316,7.59,220.07,220.03,11.7374]
[1758616578516,11.24690515,220.06,220.03,4.0874]
[1758616578716,7.59,220.06,220.03,4.0874]
[1758616578915,3.74860605,220.05,220.03,4.0874]
[1758616579115,7.59,220.06,220.03,4.0874]
[1758616579312,3.74858341,220.05,220.03,4.0874]
[1758616579615,7.59,220.06,220.01,7.65]
[1758616579815,3.74841387,220.05,220.01,7.65]
[1758616580018,7.59,220.06,220.01,7.65]
[1758616580214,3.74841462,220.05,220.01,7.65]
[1758616580414,7.59,220.06,220.01,7.65]
[1758616580616,11.33822279,220.05,220.01,7.65]
[1758616580916,7.59,220.05,220.01,7.65]
[1758616581522,5.63898277,220.04,219.97,11.7384]
[1758616581822,3.74819952,220.03,219.97,11.7384]
[1758616582418,3.74819952,220.03,219.98,4.0882]
[1758616582623,7.59,220.04,219.98,11.7382]
[1758616582917,11.33851335,220.03,219.99,7.65]
[1758616583119,7.59,220.03,219.99,7.65]
[1758616583324,3.7487556,220.02,219.99,7.65]
[1758616583620,7.59,220.03,219.99,7.65]
[1758616583822,3.7487556,220.02,219.99,7.65]
[1758616584020,7.59,220.03,219.99,7.65]
[1758616584216,3.7487556,220.02,219.98,4.0882]
[1758616584420,9.48078325,220.06,219.98,11.7382]
[1758616584623,3.74868923,220.05,219.98,11.7382]
[1758616584924,3.74868923,220.04,219.98,11.7382]
[1758616585127,3.74868923,220.03,219.98,4.0882]
[1758616585320,3.74868923,220.02,219.99,7.65]
[1758616585923,11.33868923,220.01,219.95,4.089]
[1758616586123,11.33868923,220.0,219.94,7.65]
[1758616586428,7.59,220.03,219.94,7.65]
[1758616586629,3.74965819,220.02,219.94,7.65]
[1758616586929,3.74965819,220.01,219.94,7.65]
[1758616587122,3.75054878,220.0,219.94,7.65]
[1758616587322,7.59,220.03,219.94,7.65]
[1758616587625,3.75072299,220.02,219.94,7.65]
[1758616587822,3.75072299,220.01,219.97,11.7386]
[1758616588024,7.59,220.03,219.97,11.7386]
[1758616588228,11.34065047,220.02,219.97,4.0886]
[1758616588531,3.75065047,220.01,219.97,4.0886]
[1758616588823,3.75065047,220.01,219.98,7.65]
[1758616589024,11.34065047,220.01,219.97,4.0886]
[1758616589229,11.34065047,220.0,219.97,4.0886]
[1758616589429,3.75285072,219.99,219.97,4.0886]
[1758616589629,7.59,220.0,219.97,11.7386]
[1758616592129,3.75432429,219.99,219.97,11.7386]
[1758616592433,7.59,220.0,219.97,11.7386]
[1758616592634,3.75434372,219.99,219.97,11.7386]
[1758616592934,7.59,220.0,219.97,11.7386]
[1758616593135,3.75434372,219.99,219.97,11.7386]
[1758616593433,7.59,220.0,219.97,11.7386]
[1758616593629,3.7545778,219.99,219.97,11.7386]
[1758616593829,7.59,220.0,219.97,11.7386]
[1758616594129,3.7545778,219.99,219.97,11.7386]
[1758616594335,7.59,220.0,219.97,11.7386]
[1758616594830,3.75473562,219.99,219.97,11.7386]
[1758616595136,7.59,220.0,219.97,11.7386]
[1758616595331,3.7548989,219.99,219.97,11.7386]
[1758616595532,7.59,220.0,219.97,11.7386]
[1758616595829,3.75491012,219.99,219.97,11.7386]
[1758616596030,7.59,220.0,219.97,11.7386]
[1758616596231,3.75501513,219.99,219.97,7.65]
[1758616596434,10.74501513,219.99,219.95,7.23]
[1758616596735,3.75501513,219.98,219.94,5.97978325]
[1758616597238,3.75501513,219.98,219.95,7.23]
[1758616597938,3.75501513,219.98,219.96,7.23]
[1758616599033,3.75501513,219.98,219.96,11.3186]
[1758616599234,6.99,219.99,219.97,7.23]
[1758616599434,1.89078325,220.03,219.97,7.23]
[1758616599635,10.74499642,220.02,219.98,7.23]
[1758616599841,3.75499642,220.01,219.96,7.23]
[1758616600033,3.75499642,220.0,219.96,7.23]
[1758616600233,3.18510086,219.99,219.95,1.89078325]
[1758616600434,8.88078325,220.04,219.98,4.0883]
[1758616600639,8.88078325,220.04,219.99,7.23]
[1758616600640,13.92987677,220.03,219.99,7.23]
[1758616600940,6.93987677,220.02,219.99,7.23]
[1758616601139,6.93987677,220.01,219.99,7.23]
[1758616601334,6.93987677,220.0,219.99,7.23]
[1758616603036,5.09579959,220.07,219.99,7.69]
[1758616603342,7.78104393,220.15,220.05,65.46768325]
[1758616603637,7.78104393,220.15,220.03,63.5832]
[1758616603638,37.23,220.19,220.15,4.0852]
[1758616603940,12.08579959,220.24,220.17,1.89078325]
[1758616604134,6.99,220.24,220.17,1.89078325]
[1758616604340,6.99,220.24,220.16,7.23]
[1758616604540,6.99,220.24,220.16,9.12078325]
[1758616604935,6.99,220.3,220.2,7.23]
[1758616606735,6.99,220.3,220.22,1.89078325]
[1758616608048,1.89078325,220.29,220.2,7.23]
[1758616608540,6.99,220.3,220.2,7.23]
[1758616610836,6.99,220.3,220.2,4.0842]
[1758616611037,6.99,220.3,220.21,7.23]
[1758616615654,66.42,220.32,220.23,7.23]
[1758616619757,66.42,220.32,220.24,4.0836]
[1758616620352,66.42,220.32,220.25,7.23]
[1758616623355,6.99,220.34,220.25,7.23]
[1758616623561,7.61,220.39,220.27,7.08]
[1758616624358,4.0811,220.38,220.28,4.0828]
[1758616624564,4.0811,220.38,220.29,7.08]
[1758616624764,71.0906,220.39,220.29,7.08]
[1758616625861,4.0815,220.36,220.29,7.08]
[1758616626164,7.61,220.35,220.29,7.08]
[1758616626561,7.61,220.33,220.29,7.08]
[1758616627360,4.0821,220.32,220.23,7.08]
[1758616629970,7.61,220.33,220.24,4.0836]
[1758616630266,7.61,220.33,220.25,7.08]
[1758616630662,4.0811,220.38,220.25,7.08]
[1758616630866,105.8811,220.38,220.25,2.94749236]
[1758616631062,105.8811,220.38,220.26,7.08]
[1758616631365,7.61,220.37,220.26,7.08]
[1758616631867,7.61,220.37,220.29,7.08]
[1758616634564,0.79011,220.4,220.31,7.08]
[1758616634769,7.61,220.41,220.31,7.08]
[1758616635866,7.61,220.47,220.34,7.08]
[1758616636268,7.61,220.43,220.34,7.08]
[1758616636465,63.4716,220.42,220.28,7.08]
[1758616636770,7.61,220.41,220.28,7.08]
[1758616637169,66.41909236,220.42,220.28,7.08]
[1758616637170,7.67,220.36,220.28,7.08]
[1758616638665,7.67,220.36,220.28,11.1628]
[1758616638870,7.67,220.36,220.28,7.08]
[1758616641177,11.7514,220.36,220.28,7.08]
[1758616642970,7.67,220.33,220.22,7.21]
[1758616644979,7.67,220.33,220.24,7.21]
[1758616646477,4.0821,220.32,220.24,7.21]
[1758616646679,7.67,220.32,220.18,7.21]
[1758616646982,4.0825,220.3,220.19,4.0845]
[1758616647280,4.0825,220.3,220.2,7.21]
[1758616647473,11.7525,220.3,220.2,7.21]
[1758616649876,11.7525,220.3,220.2,11.2943]
[1758616651083,7.69,220.27,220.2,7.21]
[1758616658788,7.69,220.27,220.2,11.2942]
[1758616660790,7.69,220.27,220.2,7.21]
[1758616660991,7.69,220.27,220.17,11.5948]
[1758616661793,4.0832,220.26,220.17,11.5948]
[1758616662189,7.69,220.27,220.17,11.5948]
[1758616662387,7.69,220.27,220.18,7.51]
[1758616662588,7.69,220.27,220.19,4.0845]
[1758616663191,7.69,220.27,220.2,7.51]
[1758616664495,7.69,220.27,220.21,4.0841]
[1758616665582,7.69,220.27,220.21,11.5941]
[1758616667791,7.69,220.27,220.21,7.51]
[1758616668792,121.09631179,220.31,220.21,7.51]
[1758616669192,119.21,220.31,220.21,7.51]
[1758616669795,119.21,220.31,220.23,4.0838]
[1758616670494,119.21,220.31,220.21,11.5941]
[1758616670694,7.69,220.29,220.21,11.5941]
[1758616671487,7.69,220.28,220.21,7.51]
[1758616672790,4.083,220.27,220.21,7.51]
[1758616678500,7.69,220.28,220.21,7.51]
[1758616679796,4.083,220.27,220.21,7.51]
[1758616680494,7.69,220.28,220.21,7.51]
[1758616682899,4.0832,220.27,220.21,7.51]
[1758616683102,7.33,220.26,220.21,7.51]
[1758616683400,4.0832,220.27,220.21,7.51]
[1758616683700,11.4132,220.27,220.21,7.51]
[1758616683894,7.33,220.27,220.21,7.51]
[1758616686404,7.33,220.27,220.22,4.0838]
[1758616687006,7.33,220.27,220.23,7.58]
[1758616687308,7.33,220.27,220.22,4.0838]
[1758616687804,7.33,220.27,220.23,7.58]
[1758616688106,7.33,220.27,220.21,7.58]
[1758616689095,3.75274478,220.26,220.2,4.0843]
[1758616689404,1.88631179,220.3,220.2,4.0843]
[1758616689405,3.75404716,220.25,220.2,4.0843]
[1758616689606,7.33,220.27,220.21,7.58]
[1758616689805,3.75397836,220.26,220.2,4.0843]
[1758616690006,7.33,220.27,220.21,7.58]
[1758616690201,3.75397909,220.26,220.2,11.6643]
[1758616690400,11.08397909,220.25,220.21,7.58]
[1758616690594,7.33,220.25,220.21,7.58]
[1758616691213,7.33,220.25,220.2,7.8680503]
[1758616691404,7.33,220.25,220.22,7.58]
[1758616691708,4.0829,220.28,220.22,7.58]
[1758616692011,13.29881179,220.3,220.22,7.58]
[1758616692805,11.4125,220.3,220.22,7.58]
[1758616693908,3.75766203,220.29,220.22,7.58]
[1758616694208,3.75766203,220.28,220.22,7.58]
[1758616694405,3.75766203,220.27,220.21,7.58]
[1758616694598,3.75766203,220.26,220.22,4.0839]
[1758616694804,3.75766203,220.25,220.22,4.0839]
[1758616695105,11.4125,220.3,220.23,7.58]
[1758616695303,3.75816798,220.29,220.23,7.58]
[1758616695507,7.33,220.27,220.23,7.58]
[1758616695710,3.75816798,220.26,220.23,7.58]
[1758616697211,7.09,220.25,220.21,7.28]
[1758616697414,7.09,220.23,220.17,9.16631179]
[1758616697810,8.97631179,220.28,220.17,1.88631179]
[1758616698011,3.75925663,220.27,220.23,1.88631179]
[1758616698213,3.75925663,220.26,220.23,1.88631179]
[1758616698417,111.52,220.31,220.24,7.28]
[1758616698608,3.7583936,220.3,220.24,7.28]
[1758616698815,3.7583936,220.3,220.23,1.88631179]
[1758616698816,3.7583936,220.29,220.23,1.88631179]
[1758616699016,3.7583936,220.28,220.23,1.88631179]
[1758616699317,3.7583936,220.27,220.24,7.28]
[1758616699522,3.7583936,220.26,220.25,7.28]
[1758616699819,3.7583936,220.3,220.25,1.88631179]
[1758616700025,3.7583936,220.29,220.28,1.88631179]
[1758616700223,3.7583936,220.3,220.28,1.88631179]
[1758616700422,3.7583936,220.29,220.28,9.16631179]
[1758616700620,3.7583936,220.34,220.28,9.16631179]
[1758616700926,3.7583936,220.33,220.28,1.88631179]
[1758616701121,3.7583936,220.32,220.28,1.88631179]
[1758616701321,3.7583936,220.31,220.28,1.88631179]
[1758616701521,3.7583936,220.3,220.29,7.28]
[1758616701722,3.95659002,220.3,220.29,7.28]
[1758616703326,7.09,220.35,220.29,7.28]
[1758616703528,3.9538997,220.34,220.28,1.88631179]
[1758616703723,3.9538997,220.33,220.28,1.88631179]
[1758616703921,3.9538997,220.32,220.29,4.0826]
[1758616704122,7.09,220.36,220.31,1.88631179]
[1758616704324,5.96711179,220.4,220.31,1.88631179]
[1758616704325,3.95137695,220.35,220.31,1.88631179]
[1758616704520,3.95137695,220.34,220.31,1.88631179]
[1758616704726,3.95137695,220.33,220.32,7.28]
[1758616706224,7.09,220.39,220.32,7.28]
[1758616706430,3.94804309,220.38,220.32,7.28]
[1758616706632,3.94804309,220.37,220.31,9.16631179]
[1758616706823,3.94804309,220.36,220.32,7.28]
[1758616707024,3.94804309,220.35,220.31,1.88631179]
[1758616707226,3.94804309,220.34,220.32,7.28]
[1758616707523,7.09,220.39,220.32,7.28]
[1758616707829,3.94684205,220.38,220.32,7.28]
[1758616708032,11.03684205,220.37,220.32,7.28]
[1758616708228,3.94684205,220.36,220.31,1.88631179]
[1758616708524,3.94684205,220.35,220.31,1.88631179]
[1758616708732,3.94684205,220.34,220.31,1.88631179]
[1758616708932,7.09,220.37,220.31,9.16631179]
[1758616709233,3.94577774,220.36,220.31,1.88631179]
[1758616709420,3.94577774,220.35,220.31,1.88631179]
[1758616709623,3.94482188,220.34,220.32,7.28]
[1758616709823,7.09,220.37,220.31,9.16631179]
[1758616710032,3.94459655,220.36,220.32,7.28]
[1758616710333,3.94459655,220.35,220.32,7.28]
[1758616710534,3.94459655,220.34,220.32,7.28]
[1758616710734,7.29,220.38,220.32,7.28]
[1758616710934,7.29,220.36,220.32,7.28]
[1758616711127,3.94386544,220.35,220.32,7.28]
[1758616711325,7.29,220.39,220.32,7.28]
[1758616711626,3.94314003,220.38,220.32,7.28]
[1758616711826,7.29,220.36,220.32,7.28]
[1758616712026,3.94314003,220.35,220.32,7.28]
[1758616712224,7.29,220.39,220.32,7.28]
[1758616712525,3.94250674,220.38,220.32,7.28]
[1758616712726,11.23250674,220.37,220.31,1.88631179]
[1758616712927,11.23250674,220.36,220.32,7.61]
[1758616713227,7.29,220.34,220.31,1.88631179]
[1758616713628,7.29,220.38,220.32,7.61]
[1758616713934,3.94203485,220.37,220.32,7.61]
[1758616714231,7.29,220.35,220.32,7.61]
[1758616715022,7.29,220.39,220.28,7.61]
[1758616715227,7.29,220.37,220.27,1.88631179]
[1758616715430,7.29,220.35,220.27,1.88631179]
[1758616715633,7.29,220.33,220.27,1.88631179]
[1758616715829,7.29,220.32,220.28,7.61]
[1758616717630,7.29,220.32,220.25,1.88631179]
[1758616717826,7.29,220.3,220.24,1.88631179]
[1758616718029,7.29,220.33,220.26,1.88631179]
[1758616718230,3.94235071,220.32,220.26,1.88631179]
[1758616718533,11.23235071,220.31,220.27,7.61]
[1758616718735,7.29,220.31,220.27,7.61]
[1758616719134,7.29,220.34,220.3,1.88631179]
[1758616719331,7.29,220.34,220.3,9.49631179]
[1758616720238,7.29,220.38,220.3,9.49631179]
[1758616720536,3.89694478,220.37,220.3,9.49631179]
[1758616720728,3.89694478,220.36,220.3,9.49631179]
[1758616720930,11.18694478,220.35,220.28,1.88631179]
[1758616721131,3.89694478,220.34,220.28,1.88631179]
[1758616721326,3.89694478,220.34,220.3,9.49631179]
[1758616721533,3.89694478,220.34,220.3,1.88631179]
[1758616721826,3.89694478,220.34,220.31,7.61]
[1758616722036,3.89694478,220.34,220.3,1.88631179]
[1758616722237,3.89694478,220.34,220.31,7.61]
[1758616722428,3.89694478,220.34,220.3,1.88631179]
[1758616722633,111.4,220.39,220.31,7.61]
[1758616722834,3.89746705,220.38,220.31,7.61]
[1758616723035,3.89746705,220.37,220.31,7.61]
[1758616723236,3.89746705,220.36,220.31,7.61]
[1758616723438,11.18746705,220.35,220.28,9.49631179]
[1758616723634,7.29,220.35,220.28,9.49631179]
[1758616724834,7.29,220.35,220.29,4.0827]
[1758616725338,7.29,220.35,220.28,7.61]
[1758616725535,7.29,220.35,220.26,5.96941179]
[1758616725732,7.29,220.35,220.27,7.61]
[1758616726736,1.88631179,220.34,220.27,7.61]
[1758616728639,7.29,220.35,220.28,4.0828]
[1758616728841,3.84594074,220.34,220.28,4.0828]
[1758616729041,7.29,220.35,220.28,4.0828]
[1758616729339,7.29,220.35,220.27,7.61]
[1758616730338,11.3717,220.35,220.27,7.61]
[1758616730538,3.726606,220.34,220.27,7.61]
[1758616730833,11.3717,220.35,220.27,7.61]
[1758616731038,3.72660754,220.34,220.27,7.61]
[1758616731341,11.3717,220.35,220.27,7.61]
[1758616731641,3.72710456,220.34,220.27,7.61]
[1758616731841,11.3717,220.35,220.27,7.61]
[1758616732040,3.72710379,220.34,220.27,7.61]
[1758616732240,7.29,220.35,220.27,7.61]
[1758616732843,7.29,220.35,220.28,4.0828]
[1758616733343,7.29,220.37,220.29,11.6925]
[1758616733544,3.72803505,220.36,220.29,11.6925]
[1758616733843,3.72803505,220.35,220.29,11.6925]
[1758616734138,7.29,220.37,220.31,4.0823]
[1758616734343,2.9457077,220.39,220.32,7.61]
[1758616734344,3.72858824,220.36,220.32,7.61]
[1758616734540,3.72858824,220.35,220.32,7.61]
[1758616734945,11.01858824,220.35,220.32,7.61]
[1758616735146,7.29,220.35,220.31,11.6923]
[1758616735446,7.29,220.39,220.32,7.61]
[1758616735643,3.72968066,220.38,220.32,7.61]
[1758616735842,7.29,220.36,220.32,7.61]
[1758616736040,3.72968066,220.35,220.32,7.61]
[1758616736241,7.29,220.36,220.32,7.61]
[1758616736442,7.29,220.4,220.34,7.61]
[1758616736646,7.29,220.42,220.33,11.6919]
[1758616736851,3.72880969,220.41,220.33,7.61]
[1758616737146,3.72880969,220.4,220.33,7.61]
[1758616737342,7.29,220.42,220.33,7.61]
[1758616737547,3.68354857,220.41,220.33,7.61]
[1758616737841,3.68354857,220.4,220.33,11.6919]
[1758616738046,7.29,220.42,220.33,11.6919]
[1758616738247,3.68354704,220.41,220.33,11.6919]
[1758616738446,3.68354704,220.4,220.33,11.6919]
[1758616738643,7.29,220.42,220.33,11.6919]
[1758616738844,3.68316116,220.41,220.33,11.6919]
[1758616739044,3.68316116,220.4,220.33,11.6919]
[1758616739246,7.29,220.42,220.33,11.6919]
[1758616739447,3.68344569,220.41,220.33,11.6919]
[1758616739647,3.68344569,220.4,220.33,11.6919]
[1758616739849,7.29,220.42,220.33,11.6919]
[1758616740050,3.68347845,220.41,220.33,11.6919]
[1758616740346,3.68347845,220.4,220.33,11.6919]
[1758616740547,3.68347845,220.39,220.33,11.6919]
[1758616740742,7.29,220.42,220.33,11.6919]
[1758616740938,7.0,220.4,220.33,11.6919]
[1758616741141,3.68420675,220.39,220.34,4.0816]
[1758616741344,3.68420675,220.39,220.35,7.04]
[1758616741553,115.4602,220.43,220.35,7.04]
[1758616741749,7.0,220.4,220.31,11.1221]
[1758616742042,3.68483234,220.39,220.31,11.1221]
[1758616742441,3.68483234,220.38,220.31,11.1221]
[1758616742646,7.0,220.38,220.31,11.1221]
[1758616743245,3.68631325,220.37,220.31,7.04]
[1758616743444,10.68631325,220.36,220.27,7.04]
[1758616743647,3.68631325,220.35,220.27,7.04]
[1758616744249,3.68631325,220.35,220.28,4.0828]
[1758616744551,7.0,220.36,220.29,7.04]
[1758616744745,3.68882818,220.35,220.29,7.04]
[1758616744946,7.0,220.36,220.29,7.04]
[1758616745145,3.68882664,220.35,220.29,7.04]
[1758616745347,7.0,220.36,220.29,7.04]
[1758616745549,3.68905458,220.35,220.29,7.04]
[1758616745750,7.0,220.36,220.29,7.04]
[1758616745949,3.68905227,220.35,220.29,7.04]
[1758616746149,7.0,220.36,220.29,7.04]
[1758616746746,3.63616189,220.35,220.29,7.04]
[1758616747050,3.6364152,220.34,220.29,7.04]
[1758616747352,7.0,220.39,220.29,7.04]
[1758616747551,7.0,220.37,220.29,7.04]
[1758616747753,7.0,220.35,220.29,7.04]
[1758616748053,7.0,220.33,220.29,7.04]
[1758616748242,7.0,220.33,220.25,7.04]
[1758616748442,7.0,220.31,220.18,8.00418312]
[1758616748753,3.63713143,220.3,220.2,7.04]
[1758616749147,7.0,220.29,220.2,7.04]
[1758616749342,4.10015642,220.28,220.2,7.04]
[1758616749553,4.10015642,220.27,220.2,7.04]
[1758616749753,4.10015642,220.26,220.2,11.1242]
[1758616749955,4.10015642,220.25,220.21,7.04]
[1758616750249,4.10015642,220.24,220.21,7.04]
[1758616750450,11.0828,220.29,220.21,7.04]
[1758616750651,4.09801551,220.28,220.21,7.04]
[1758616750852,4.09801551,220.27,220.21,7.04]
[1758616751050,4.09801551,220.26,220.21,7.04]
[1758616751246,4.09801551,220.25,220.21,7.04]
[1758616751551,4.09801551,220.24,220.2,4.0842]
[1758616751751,4.09801551,220.23,220.2,4.0842]
[1758616751953,11.0828,220.29,220.21,7.04]
[1758616752143,4.09699151,220.28,220.21,7.04]
[1758616752347,4.09699151,220.27,220.21,7.04]
[1758616752649,4.09699151,220.26,220.2,11.1242]
[1758616752950,4.09699151,220.25,220.24,7.04]
[1758616755056,7.0,220.33,220.24,7.04]
[1758616755558,4.09453408,220.32,220.24,7.04]
[1758616755856,7.0,220.33,220.24,7.04]
[1758616756052,4.09453408,220.32,220.24,7.04]
[1758616756259,7.0,220.33,220.24,7.04]
[1758616757859,7.68,220.31,220.24,7.04]
[1758616758061,4.09428306,220.3,220.24,7.04]
[1758616758256,4.09428306,220.29,220.21,7.22]
[1758616758561,4.09428306,220.28,220.21,7.22]
[1758616758758,4.09428306,220.27,220.21,7.22]
[1758616758960,4.09428306,220.26,220.21,7.22]
[1758616759161,7.68,220.31,220.21,7.22]
[1758616759363,3.92679018,220.3,220.21,7.22]
[1758616759561,3.92679018,220.29,220.21,7.22]
[1758616759761,3.92679018,220.28,220.25,7.22]
[1758616759965,7.68,220.31,220.24,11.3036]
[1758616760262,3.92678944,220.3,220.24,11.3036]
[1758616760467,3.92678944,220.29,220.24,4.0836]
[1758616760659,3.92678944,220.28,220.25,7.22]